bitfinex-derivatives/quotes_BTCF0:USTF0_20251216
["timestamp","ask_amount","ask_price","bid_price","bid_amount"]
[1765892543518,0.31704,87236.0,87235.0,0.00017197]
[1765892543716,0.0114667,87229.0,87201.0,0.0114702]
[1765892543922,0.31704,87221.0,87220.0,0.0114677]
[1765892544722,0.31704,87221.0,87219.0,0.0114678]
[1765892544913,0.15733,87213.0,87212.0,0.01164067]
[1765892545116,0.31704,87213.0,87212.0,0.00017197]
[1765892546012,0.15733,87213.0,87212.0,0.00017197]
[1765892546919,0.0001716,87229.0,87212.0,0.00017197]
[1765892547121,0.15733,87218.0,87214.0,0.0114685]
[1765892547321,0.15733,87215.0,87213.0,0.0114687]
[1765892547517,0.0001716,87229.0,87212.0,0.00017197]
[1765892547722,0.0001716,87229.0,87212.0,0.00117197]
[1765892547723,0.26704,87213.0,87212.0,0.00117197]
[1765892548223,0.26704,87213.0,87212.0,0.00017197]
[1765892549227,0.26904,87213.0,87212.0,0.00017197]
[1765892549926,0.26704,87213.0,87212.0,0.00017197]
[1765892550130,0.26804,87213.0,87212.0,0.00017197]
[1765892550334,0.26804,87213.0,87200.0,0.00010812]
[1765892550335,0.31704,87201.0,87200.0,0.00010812]
[1765892550524,0.31704,87182.0,87165.0,0.09531]
[1765892550831,0.07963,87195.0,87174.0,0.0114738]
[1765892550832,0.15733,87175.0,87174.0,0.0114738]
[1765892551033,0.31704,87175.0,87174.0,0.0114738]
[1765892551228,0.31704,87175.0,87171.0,0.0114741]
[1765892551422,0.15733,87181.0,87180.0,0.011473]
[1765892551818,0.15745484,87181.0,87180.0,0.011473]
[1765892552027,0.15745484,87181.0,87176.0,0.0114734]
[1765892552329,0.15745484,87181.0,87166.0,0.00017197]
[1765892552330,0.00012484,87181.0,87178.0,0.0114732]
[1765892553033,0.00012484,87181.0,87180.0,0.32727]
[1765892553231,0.00112484,87181.0,87180.0,0.32727]
[1765892553630,0.00112484,87181.0,87180.0,0.42346]
[1765892554037,0.0714692,87210.0,87180.0,0.09619]
[1765892554340,0.0114692,87209.0,87185.0,0.0114723]
[1765892554729,0.25455632,87200.0,87180.0,0.09619]
[1765892555040,0.00017195,87199.0,87191.0,0.0114715]
[1765892555234,0.00017195,87199.0,87193.0,0.0114712]
[1765892555235,0.1611,87194.0,87193.0,0.0114712]
[1765892555424,0.1611,87194.0,87190.0,0.0114716]
[1765892555629,0.32479,87186.0,87185.0,0.001]
[1765892556333,0.32479,87182.0,87181.0,0.01164488]
[1765892556634,0.32479,87182.0,87181.0,0.01164498]
[1765892556934,0.32479,87182.0,87181.0,0.00017208]
[1765892557532,0.32479,87182.0,87181.0,0.00117208]
[1765892558036,0.32479,87182.0,87181.0,0.00017208]
[1765892558238,0.32479,87182.0,87165.0,0.09531]
[1765892558239,0.1611,87171.0,87170.0,0.0114743]
[1765892558532,0.1611,87175.0,87174.0,0.0114738]
[1765892558734,0.32479,87175.0,87174.0,0.0114738]
[1765892558930,0.32479,87175.0,87152.0,0.09531]
[1765892559125,0.32479,87167.0,87166.0,0.0114747]
[1765892559340,0.1611,87167.0,87166.0,0.0114747]
[1765892560635,0.32496208,87175.0,87174.0,0.0114738]
[1765892560831,0.00017208,87175.0,87174.0,0.3283538]
[1765892561142,0.0114715,87192.0,87180.0,0.0114729]
[1765892561639,0.33143632,87200.0,87177.0,0.0114733]
[1765892561640,0.0114718,87190.0,87177.0,0.0114733]
[1765892561936,0.0114718,87190.0,87179.0,0.011473]
[1765892562136,0.25455632,87190.0,87179.0,0.011473]
[1765892562345,0.25455632,87190.0,87175.0,0.00017208]
[1765892562537,0.32479,87176.0,87175.0,0.00017208]
[1765892564039,0.32479,87176.0,87175.0,0.00117208]
[1765892564239,0.00017195,87192.0,87175.0,0.00117208]
[1765892564240,0.00017195,87192.0,87175.0,0.31805208]
[1765892564435,0.01164345,87192.0,87181.0,0.0114728]
[1765892564643,0.01164345,87192.0,87175.0,0.00117208]
[1765892564644,0.32479,87189.0,87188.0,0.0114719]
[1765892565835,0.32479,87189.0,87175.0,0.00117208]
[1765892565836,0.1611,87186.0,87185.0,0.0114722]
[1765892566036,0.001,87189.0,87188.0,0.3283519]
[1765892566242,0.00017195,87192.0,87190.0,0.0114716]
[1765892566443,0.1611,87191.0,87190.0,0.0114716]
[1765892566950,0.32479,87191.0,87190.0,0.0114716]
[1765892567446,0.32479,87191.0,87190.0,0.0124716]
[1765892567642,0.32479,87191.0,87190.0,0.001]
[1765892569142,0.40439,87191.0,87190.0,0.001]
[1765892569339,0.40439,87191.0,87175.0,0.00017208]
[1765892569340,0.32479,87176.0,87175.0,0.00017208]
[1765892571051,0.32579,87176.0,87175.0,0.00017208]
[1765892571834,0.32479,87176.0,87175.0,0.00017208]
[1765892572042,0.32479,87176.0,87175.0,0.15354208]
[1765892572248,0.32479,87181.0,87180.0,0.011473]
[1765892572646,0.1611,87178.0,87177.0,0.0114733]
[1765892572950,0.32479,87184.0,87183.0,0.0114725]
[1765892573250,0.1611,87176.0,87175.0,0.31705208]
[1765892573639,0.1621,87176.0,87175.0,0.31705208]
[1765892573835,0.32579,87176.0,87175.0,0.00017208]
[1765892574245,0.32479,87176.0,87175.0,0.00017208]
[1765892575352,0.25455632,87190.0,87175.0,0.00017208]
[1765892575651,0.25455632,87190.0,87175.0,0.01164568]
[1765892575652,0.0114723,87186.0,87175.0,0.01164568]
[1765892575850,0.0114723,87186.0,87175.0,0.01264568]
[1765892576045,0.32479,87179.0,87178.0,0.0114732]
[1765892576248,0.1611,87185.0,87184.0,0.3283524]
[1765892576438,0.00017195,87192.0,87188.0,0.0114719]
[1765892576646,0.00017195,87192.0,87191.0,0.31688]
[1765892577252,0.16127195,87192.0,87191.0,0.31688]
[1765892578253,0.00017195,87192.0,87191.0,0.41307]
[1765892578745,0.32479,87191.0,87190.0,0.0114716]
[1765892579759,0.32479,87191.0,87190.0,0.1648416]
[1765892579953,0.32479,87188.0,87187.0,0.011472]
[1765892580151,0.1611,87188.0,87187.0,0.328352]
[1765892580455,0.1611,87188.0,87178.0,0.09619]
[1765892580456,0.00017195,87192.0,87191.0,0.4245415]
[1765892580645,0.00017195,87192.0,87185.0,0.16351]
[1765892580847,0.35310632,87230.0,87204.0,0.09619]
[1765892581048,0.32479,87201.0,87200.0,0.0114703]
[1765892581250,0.32479,87210.0,87209.0,0.0114691]
[1765892581455,0.0114668,87228.0,87211.0,0.31688]
[1765892581758,0.02933597,87248.0,87216.0,0.09619]
[1765892582052,0.0114644,87246.0,87236.0,0.0114655]
[1765892582260,0.32479,87246.0,87245.0,0.0114644]
[1765892582550,0.32479,87246.0,87234.0,0.09619]
[1765892582752,0.32479,87246.0,87240.0,0.011465]
[1765892582956,0.25455632,87250.0,87232.0,0.01163818]
[1765892582957,0.32479,87233.0,87232.0,0.01163818]
[1765892583652,0.29947,87244.0,87239.0,0.0114651]
[1765892583842,0.29947,87233.0,87232.0,0.00017198]
[1765892584044,0.09062,87234.0,87204.0,0.09619]
[1765892584254,0.29947,87211.0,87210.0,0.0114689]
[1765892584956,0.29947,87211.0,87190.0,0.26602792]
[1765892585156,0.29947,87209.0,87208.0,0.0114692]
[1765892585355,0.29947,87209.0,87202.0,0.01147]
[1765892585547,0.29947,87198.0,87197.0,0.01157021]
[1765892585748,0.00017164,87213.0,87197.0,0.01157021]
[1765892585749,0.00017164,87213.0,87208.0,0.0114692]
[1765892586052,0.00017164,87213.0,87212.0,0.29396]
[1765892586451,0.0114649,87242.0,87211.0,0.0114689]
[1765892586650,0.25455632,87250.0,87211.0,0.0114689]
[1765892586856,0.0114644,87246.0,87234.0,0.0114659]
[1765892587155,0.0114644,87246.0,87220.0,0.25455632]
[1765892587156,0.0114635,87253.0,87238.0,0.0114653]
[1765892587361,0.25455632,87260.0,87225.0,0.09644]
[1765892587562,0.16354,87262.0,87230.0,0.0114664]
[1765892587563,0.29947,87231.0,87230.0,0.0114664]
[1765892587745,0.25455632,87250.0,87222.0,0.01163948]
[1765892587746,0.29947,87223.0,87222.0,0.01163948]
[1765892588153,0.35605152,87240.0,87224.0,0.0114671]
[1765892588353,0.29947,87223.0,87222.0,0.00017198]
[1765892588663,0.3109387,87213.0,87212.0,0.003]
[1765892588852,0.15372,87201.0,87200.0,0.0114703]
[1765892589047,0.29947,87198.0,87120.0,0.35099632]
[1765892589253,0.29947,87189.0,87188.0,0.0114719]
[1765892589556,0.34125632,87200.0,87156.0,0.06508]
[1765892589557,0.29947,87178.0,87165.0,0.09644]
[1765892589746,0.15372,87174.0,87173.0,0.0114738]
[1765892590157,0.0114718,87189.0,87175.0,0.0114735]
[1765892590352,0.00011548,87188.0,87181.0,0.0114728]
[1765892590655,0.29947,87177.0,87176.0,0.00017208]
[1765892591862,0.00011548,87188.0,87177.0,0.0114734]
[1765892592262,0.00011548,87188.0,87179.0,0.011473]
[1765892592458,0.00011548,87188.0,87176.0,0.00117208]
[1765892592459,0.29947,87177.0,87176.0,0.00117208]
[1765892593053,0.29947,87177.0,87176.0,0.00017208]
[1765892595767,0.15372,87177.0,87176.0,0.00017208]
[1765892596660,0.15372,87183.0,87179.0,0.0114731]
[1765892596865,0.15372,87183.0,87181.0,0.0114728]
[1765892597253,0.15372,87182.0,87181.0,0.0114728]
[1765892598264,0.29947,87182.0,87181.0,0.0114728]
[1765892598469,0.15372,87182.0,87181.0,0.0114728]
[1765892598660,0.29947,87186.0,87176.0,0.00017208]
[1765892598965,0.29947,87179.0,87178.0,0.0114731]
[1765892599353,0.00011548,87188.0,87176.0,0.00017208]
[1765892599354,0.29947,87177.0,87176.0,0.00017208]
[1765892599765,0.00011548,87188.0,87177.0,0.0114734]
[1765892600059,0.29947,87177.0,87176.0,0.00017208]
[1765892600666,0.29947,87177.0,87176.0,0.00117208]
[1765892601661,0.29947,87177.0,87176.0,0.01264558]
[1765892602065,0.29947,87177.0,87176.0,0.01164558]
[1765892602563,0.29947,87177.0,87176.0,0.00017208]
[1765892603357,0.15372,87180.0,87179.0,0.011473]
[1765892603558,0.29947,87177.0,87176.0,0.00017208]
[1765892603955,0.3109434,87177.0,87176.0,0.00017208]
[1765892604471,0.29947,87177.0,87176.0,0.00017208]
[1765892609167,0.3109434,87177.0,87176.0,0.00017208]
[1765892610772,0.29947,87167.0,87166.0,0.0114747]
[1765892610967,0.29958548,87167.0,87166.0,0.0114747]
[1765892611272,0.00011548,87167.0,87166.0,0.3054347]
[1765892611462,0.47330008,87176.0,87175.0,0.0114737]
[1765892611661,0.29947,87176.0,87175.0,0.0114737]
[1765892612063,0.29947,87168.0,87167.0,0.00017208]
[1765892612467,0.29947,87168.0,87167.0,0.01164678]
[1765892612962,0.29947,87179.0,87178.0,0.0114731]
[1765892613465,0.31173,87168.0,87167.0,0.01164678]
[1765892613674,0.31173,87168.0,87167.0,0.00017208]
[1765892614176,0.31173,87168.0,87167.0,0.01164678]
[1765892614376,0.31173,87168.0,87167.0,0.32064678]
[1765892614668,0.31064,87180.0,87179.0,0.011473]
[1765892615866,0.31164,87180.0,87179.0,0.011473]
[1765892616479,0.31064,87168.0,87167.0,0.01364678]
[1765892616774,0.26064,87168.0,87167.0,0.01364678]
[1765892617269,0.21064,87168.0,87167.0,0.01364678]
[1765892617677,0.21064,87168.0,87167.0,0.01264678]
[1765892618676,0.21064,87168.0,87167.0,0.16492678]
[1765892618975,0.21064,87168.0,87167.0,0.32364678]
[1765892620268,0.2221146,87168.0,87167.0,0.00317208]
[1765892620468,0.2221146,87168.0,87145.0,0.0114776]
[1765892620469,0.2619,87146.0,87145.0,0.0114776]
[1765892621676,0.26096,87146.0,87145.0,0.005]
[1765892621977,0.26096,87146.0,87145.0,0.009]
[1765892622573,0.26096,87146.0,87145.0,0.318]
[1765892622772,0.00017208,87154.0,87145.0,0.318]
[1765892622773,0.00017208,87154.0,87153.0,0.309]
[1765892623480,0.26018,87153.0,87152.0,0.1039667]
[1765892623776,0.00017208,87154.0,87148.0,0.0114771]
[1765892623967,0.00017208,87154.0,87145.0,0.007]
[1765892623968,0.26018,87146.0,87145.0,0.007]
[1765892624169,0.26018,87146.0,87145.0,0.003]
[1765892624576,0.26018,87146.0,87144.0,0.0114777]
[1765892624876,0.26018,87146.0,87137.0,0.00030885]
[1765892624877,0.25922,87140.0,87137.0,0.00030885]
[1765892625076,0.25922,87139.0,87137.0,0.00030885]
[1765892625479,0.25922,87139.0,87137.0,0.01178745]
[1765892625780,0.25922,87139.0,87137.0,0.00030885]
[1765892625970,0.25922,87139.0,87137.0,0.01178745]
[1765892627077,0.25922,87139.0,87138.0,0.00429522]
[1765892627272,0.25922,87139.0,87138.0,0.00629522]
[1765892627980,0.25649208,87154.0,87153.0,0.0114766]
[1765892628491,0.00017208,87154.0,87153.0,0.3204766]
[1765892628869,0.25536,87166.0,87165.0,0.09249]
[1765892629382,0.25487,87165.0,87164.0,0.011475]
[1765892630483,0.25587,87165.0,87164.0,0.011475]
[1765892631283,0.25687,87165.0,87164.0,0.011475]
[1765892631786,0.2525,87157.0,87156.0,0.00017208]
[1765892634773,0.24954,87139.0,87138.0,0.01377372]
[1765892635185,0.24954,87139.0,87138.0,0.00229522]
[1765892635791,0.2600385,87138.0,87137.0,0.00013677]
[1765892636179,0.24856,87138.0,87137.0,0.01161547]
[1765892637284,0.24856,87138.0,87137.0,0.01361547]
[1765892637484,0.24856,87138.0,87137.0,0.01561547]
[1765892640590,0.24775208,87147.0,87146.0,0.0114775]
[1765892640782,0.24758,87144.0,87143.0,0.0114778]
[1765892641180,0.12181,87101.0,87098.0,0.00229628]
[1765892641386,0.41745008,87110.0,87109.0,0.0114823]
[1765892641590,0.24362,87110.0,87109.0,0.0114823]
[1765892641785,0.24362,87110.0,87098.0,0.00229628]
[1765892641991,0.24362,87099.0,87098.0,0.00229628]
[1765892642186,0.24375154,87099.0,87098.0,0.00229628]
[1765892643481,0.24475154,87099.0,87098.0,0.01229628]
[1765892647593,0.2557247,87091.0,87090.0,0.00017221]
[1765892647891,0.24424,87091.0,87090.0,0.01165711]
[1765892648285,0.24424,87091.0,87090.0,0.00017221]
[1765892648696,0.2432,87083.0,87082.0,0.0114859]
[1765892648882,0.2432,87080.0,87079.0,0.0114863]
[1765892649086,0.24331034,87080.0,87079.0,0.0114863]
[1765892649281,0.24331034,87080.0,87075.0,0.0114867]
[1765892649282,0.24488,87076.0,87075.0,0.0114867]
[1765892650295,0.01159664,87080.0,87067.0,0.00017221]
[1765892650296,0.24556,87068.0,87067.0,0.00017221]
[1765892650492,0.00011034,87080.0,87079.0,0.3400963]
[1765892652097,0.22424034,87080.0,87079.0,0.0114863]
[1765892652498,0.22524034,87080.0,87079.0,0.0114863]
[1765892653597,0.00111034,87080.0,87079.0,0.3400963]
[1765892654996,0.00011034,87080.0,87079.0,0.3400963]
[1765892655295,0.00011034,87080.0,87079.0,0.001]
[1765892655296,0.22157034,87080.0,87079.0,0.001]
[1765892655901,0.11073,87079.0,87078.0,0.0114864]
[1765892656795,0.11073,87079.0,87067.0,0.00017221]
[1765892656999,0.11073,87068.0,87067.0,0.01166011]
[1765892657388,0.22093,87068.0,87067.0,0.01166011]
[1765892657997,0.21934,87077.0,87076.0,0.0114866]
[1765892658506,0.00011034,87080.0,87079.0,0.3400963]
[1765892658689,0.00011034,87080.0,87067.0,0.17500229]
[1765892658690,0.21828,87068.0,87067.0,0.00117221]
[1765892658889,0.21828,87059.0,87048.0,0.09249]
[1765892659093,0.21839402,87059.0,87048.0,0.09249]
[1765892659691,0.21839402,87059.0,87055.0,0.01163413]
[1765892659897,0.21839402,87059.0,87057.0,0.0114892]
[1765892660098,0.21839402,87059.0,87058.0,0.00529733]
[1765892661503,0.21839402,87059.0,87058.0,0.00829733]
[1765892664104,0.21595402,87059.0,87058.0,0.00829733]
[1765892664295,0.19574,87056.0,87055.0,2.06e-06]
[1765892665906,0.20893,87051.0,87050.0,0.00011466]
[1765892666612,0.2084108,87045.0,87044.0,0.0114909]
[1765892667000,0.207882,87036.0,87035.0,0.0114921]
[1765892667310,0.19647765,87036.0,87035.0,0.0114921]
[1765892668108,0.19647765,87036.0,87022.0,0.09854]
[1765892668311,0.19432,87032.0,87031.0,0.0114925]
[1765892669512,0.19432,87032.0,87022.0,0.09854]
[1765892669811,0.19079,87031.0,87030.0,0.0114926]
[1765892670413,0.19079,87031.0,87022.0,0.09854]
[1765892670414,0.18674,87028.0,87027.0,0.0114931]
[1765892672004,0.001,87031.0,87030.0,0.3401028]
[1765892672203,0.18624,87034.0,87033.0,0.0114924]
[1765892672604,8.765e-05,87036.0,87027.0,0.003]
[1765892672605,0.18519,87028.0,87027.0,0.003]
[1765892674104,0.18308,87002.0,86998.0,0.011497]
[1765892674314,0.18308,87002.0,86978.0,0.00229945]
[1765892674315,0.19469134,87002.0,87001.0,0.0303445]
[1765892674616,0.19469134,87002.0,87001.0,0.00012737]
[1765892674808,0.19169134,87002.0,87001.0,0.00012737]
[1765892675324,0.17795,86988.0,86987.0,0.0114983]
[1765892675625,0.17795,86988.0,86987.0,0.04167866]
[1765892675918,0.17838,86998.0,86996.0,0.09608]
[1765892676115,0.00011484,87002.0,87001.0,0.3149966]
[1765892676714,0.17738,86991.0,86988.0,0.03082043]
[1765892677016,0.17738,86988.0,86987.0,0.002]
[1765892677813,0.08869,86988.0,86987.0,0.31282]
[1765892678214,0.17759,86988.0,86986.0,0.0114985]
[1765892678418,0.17674,86987.0,86986.0,0.0114985]
[1765892679109,0.17674,86984.0,86983.0,0.0947]
[1765892679306,0.17674,86984.0,86978.0,0.00229945]
[1765892679307,0.17567,86979.0,86978.0,0.00229945]
[1765892679520,0.17567,86979.0,86978.0,0.03242032]
[1765892680108,0.17567,86979.0,86978.0,0.00229945]
[1765892680310,0.1746,86968.0,86967.0,0.011501]
[1765892680518,0.1746,86965.0,86963.0,0.0115015]
[1765892681214,0.17448,86960.0,86959.0,0.0115021]
[1765892681515,0.00012421,86968.0,86956.0,0.01163374]
[1765892681516,0.17436,86957.0,86956.0,0.01163374]
[1765892681706,0.17436,86957.0,86956.0,0.00013124]
[1765892681907,0.1358624,86957.0,86956.0,0.00013124]
[1765892682120,0.12436,86957.0,86956.0,0.00013124]
[1765892682624,0.12436,86957.0,86956.0,0.01163384]
[1765892683124,0.12436,86957.0,86956.0,0.00013124]
[1765892684519,0.12436,86957.0,86944.0,0.0947]
[1765892684520,0.092904,86945.0,86944.0,0.0947]
[1765892684923,0.0894,86939.0,86938.0,0.0023005]
[1765892685713,0.08953405,86939.0,86938.0,0.0023005]
[1765892686215,0.04419,86921.0,86918.0,0.0947]
[1765892686409,0.08778,86919.0,86918.0,0.0947]
[1765892686916,0.08778,86919.0,86918.0,0.40552]
[1765892686917,0.04399323,86919.0,86918.0,0.40552]
[1765892687225,0.00010323,86919.0,86918.0,0.40552]
[1765892687518,0.00010323,86919.0,86918.0,0.40652]
[1765892687919,0.00017252,86928.0,86927.0,0.15946]
[1765892688109,0.00017252,86928.0,86927.0,0.1709664]
[1765892688309,0.08724252,86928.0,86927.0,0.0115064]
[1765892688609,0.04328,86924.0,86923.0,0.3223268]
[1765892688811,0.00017252,86928.0,86918.0,0.0957]
[1765892688812,0.08856,86919.0,86918.0,0.0957]
[1765892689117,0.08864997,86919.0,86918.0,0.25416]
[1765892689322,0.08864997,86919.0,86918.0,0.0947]
[1765892689524,0.04336997,86919.0,86918.0,0.25416]
[1765892689920,8.997e-05,86919.0,86918.0,0.40552]
[1765892690223,0.04286997,86919.0,86918.0,0.40552]
[1765892690424,0.08565997,86919.0,86918.0,0.0947]
[1765892690735,0.08765997,86919.0,86918.0,0.0947]
[1765892690919,0.00208997,86919.0,86918.0,0.40552]
[1765892692127,0.00208997,86919.0,86918.0,0.4170276]
[1765892692327,0.00408997,86919.0,86918.0,0.4170276]
[1765892693018,0.00017252,86928.0,86918.0,0.4170276]
[1765892693019,0.00017252,86928.0,86927.0,0.3223264]
[1765892693224,0.0115033,86951.0,86944.0,0.0947]
[1765892693616,0.25608725,86954.0,86944.0,0.0947]
[1765892693813,0.0114997,86978.0,86953.0,0.0115029]
[1765892694015,0.0115012,86966.0,86958.0,0.0115023]
[1765892694220,0.0115014,86965.0,86957.0,0.0947]
[1765892694422,0.0115009,86969.0,86961.0,0.0115018]
[1765892694623,0.25608725,86967.0,86961.0,0.0115018]
[1765892694821,0.09018,86958.0,86957.0,0.0947]
[1765892695024,0.09032472,86958.0,86957.0,0.0947]
[1765892695622,0.00014472,86958.0,86957.0,0.40552]
[1765892696123,0.00414472,86958.0,86957.0,0.40552]
[1765892696628,0.00014472,86958.0,86957.0,0.40552]
[1765892696821,0.00017252,86971.0,86970.0,0.40552]
[1765892697023,0.08830252,86971.0,86970.0,0.0947]
[1765892697918,0.04431348,86971.0,86970.0,0.40552]
[1765892698627,0.00525348,86971.0,86970.0,0.40652]
[1765892699028,0.01025348,86971.0,86970.0,0.40752]
[1765892700031,0.09336,86984.0,86983.0,0.0947]
[1765892700329,0.09234,86997.0,86996.0,0.0947]
[1765892700518,0.04617,86973.0,86972.0,0.1709604]
[1765892700720,0.09234,86971.0,86970.0,0.002]
[1765892701034,0.09244645,86971.0,86970.0,0.0957]
[1765892701327,0.00010645,86971.0,86970.0,0.40652]
[1765892701827,0.00017242,86979.0,86978.0,0.3223196]
[1765892703124,0.25608725,87010.0,86983.0,0.0947]
[1765892703328,0.26758265,87010.0,87009.0,0.0947]
[1765892703542,0.04648,87010.0,87009.0,0.25932]
[1765892703725,0.09265,87010.0,87009.0,0.25932]
[1765892703925,0.09265,87010.0,87009.0,0.0947]
[1765892704320,0.3566153,87012.0,87001.0,0.00017242]
[1765892704321,0.09255,87002.0,87001.0,0.00017242]
[1765892704528,0.04617,87002.0,87001.0,0.31402242]
[1765892704933,0.09776,87010.0,87009.0,0.09322]
[1765892705132,0.05238,87010.0,87009.0,0.40707]
[1765892705329,0.006,87010.0,87009.0,0.40707]
[1765892705524,0.0114931,87028.0,87017.0,0.3253445]
[1765892705729,0.0114914,87041.0,87017.0,0.3253445]
[1765892705928,0.0114916,87039.0,87035.0,0.09322]
[1765892706233,0.0114916,87039.0,87022.0,0.09322]
[1765892706234,0.0114925,87033.0,87022.0,0.40707]
[1765892706434,0.03513958,87044.0,87033.0,0.0114923]
[1765892706624,0.09068,87039.0,87038.0,0.09322]
[1765892706935,0.09068,87031.0,87030.0,0.00017242]
[1765892707437,0.003,87039.0,87038.0,0.40707]
[1765892707831,0.00017242,87047.0,87038.0,0.09322]
[1765892708137,0.004,87039.0,87038.0,0.4185617]
[1765892708529,0.007,87039.0,87038.0,0.4185617]
[1765892709033,0.09532,87039.0,87038.0,0.09322]
[1765892709226,0.09532,87039.0,87038.0,0.40707]
[1765892709227,0.004,87039.0,87038.0,0.40707]
[1765892709432,0.0114909,87045.0,87039.0,0.0114916]
[1765892709742,0.00417242,87047.0,87046.0,0.0114907]
[1765892710035,0.00417242,87047.0,87046.0,0.3253407]
[1765892710439,0.00017242,87047.0,87046.0,0.3253407]
[1765892710736,0.00017242,87047.0,87046.0,0.31385]
[1765892710737,0.05653292,87047.0,87046.0,0.31385]
[1765892711132,0.0887,87039.0,87038.0,0.09322]
[1765892711632,0.00917242,87047.0,87046.0,0.31385]
[1765892711938,0.04383,87041.0,87040.0,0.0114914]
[1765892712128,0.04383,87041.0,87038.0,0.09322]
[1765892712129,0.0114908,87046.0,87045.0,0.3253408]
[1765892712338,0.00517242,87047.0,87046.0,0.31385]
[1765892712639,0.0866,87040.0,87039.0,0.0114916]
[1765892712826,0.04347242,87047.0,87046.0,0.3253407]
[1765892713032,0.00017242,87047.0,87046.0,0.3253407]
[1765892713834,0.09125242,87047.0,87046.0,0.16462]
[1765892714029,0.00517242,87047.0,87046.0,0.31385]
[1765892714630,0.00917242,87047.0,87046.0,0.31385]
[1765892719636,0.0114871,87073.0,87072.0,0.40707]
[1765892719833,0.0602887,87061.0,87060.0,0.25784]
[1765892720039,0.1090892,87057.0,87056.0,0.1761093]
[1765892720253,0.0114892,87057.0,87056.0,0.4899593]
[1765892720445,0.0114889,87060.0,87059.0,0.3253387]
[1765892721340,0.01166011,87068.0,87067.0,0.31385]
[1765892722237,0.0603587,87061.0,87060.0,0.25784]
[1765892722445,0.0603587,87061.0,87060.0,0.40707]
[1765892722847,0.0114887,87061.0,87060.0,0.40707]
[1765892723235,0.0114879,87067.0,87066.0,0.31385]
[1765892724833,0.00017231,87068.0,87067.0,0.3253379]
[1765892725451,0.00017231,87068.0,87067.0,0.31385]
[1765892725635,0.09527231,87068.0,87067.0,0.31385]
[1765892725840,0.14051,87052.0,87051.0,0.31402231]
[1765892726338,0.46598333,87061.0,87060.0,0.09322]
[1765892726540,0.0114887,87061.0,87060.0,0.40707]
[1765892726837,0.2916699,87052.0,87051.0,0.00017231]
[1765892727952,0.3170516,87039.0,87037.0,0.0114918]
[1765892728139,0.3170516,87039.0,87038.0,0.40707]
[1765892728852,0.0114913,87042.0,87041.0,0.31385]
[1765892729038,0.1606413,87042.0,87041.0,0.31385]
[1765892729649,0.1606413,87042.0,87039.0,0.0114916]
[1765892729650,0.3161316,87039.0,87038.0,0.1047116]
[1765892730046,0.3161316,87039.0,87038.0,0.2693316]
[1765892730749,0.3161316,87039.0,87030.0,0.00017231]
[1765892730750,0.30416,87031.0,87030.0,0.01166511]
[1765892731144,0.0114926,87033.0,87032.0,0.31385]
[1765892731447,0.3151726,87033.0,87032.0,0.31385]
[1765892732157,0.3151726,87033.0,87010.0,0.0114953]
[1765892732158,0.30368,87028.0,87010.0,0.0114953]
[1765892732445,0.0114928,87030.0,87006.0,0.3253458]
[1765892732446,0.0114958,87007.0,87006.0,0.3253458]
[1765892732649,0.3146958,87007.0,87006.0,0.31385]
[1765892732842,0.1606466,87001.0,87000.0,0.25784]
[1765892733245,0.31481251,87001.0,87000.0,0.09322]
[1765892733440,0.3142674,86995.0,86992.0,0.00017241]
[1765892733647,0.14915,86993.0,86992.0,0.00017241]
[1765892733848,0.30229,86993.0,86992.0,0.00017241]
[1765892734049,0.0114974,86995.0,86994.0,0.31883]
[1765892735256,0.3180074,86995.0,86994.0,0.15815]
[1765892735457,0.30626,86993.0,86992.0,0.00317241]
[1765892735950,0.0114974,86995.0,86994.0,0.31883]
[1765892736147,0.0114974,86995.0,86992.0,0.00117241]
[1765892736148,0.30626,86993.0,86992.0,0.00017241]
[1765892737256,0.30626,86993.0,86992.0,0.00217241]
[1765892737552,0.00011591,87001.0,87000.0,0.09624]
[1765892737553,0.31592251,87001.0,87000.0,0.09624]
[1765892738353,0.16376251,87001.0,87000.0,0.41507]
[1765892738546,0.38716251,87001.0,87000.0,0.41507]
[1765892739158,0.89876251,87001.0,87000.0,0.41607]
[1765892739655,0.73511591,87001.0,87000.0,0.41607]
[1765892739851,1.03747591,87001.0,87000.0,0.09724]
[1765892740054,1.03747591,87001.0,87000.0,0.001]
[1765892740254,0.3133677,86993.0,86992.0,0.00017241]
[1765892740651,0.73511591,87001.0,87000.0,0.41507]
[1765892740959,0.89730251,87001.0,87000.0,0.41507]
[1765892741258,1.04799251,87001.0,87000.0,0.41507]
[1765892741549,0.00011591,87001.0,87000.0,0.4265667]
[1765892742360,0.0612703,87045.0,87000.0,0.4265667]
[1765892742361,0.17431463,87020.0,87008.0,0.3303257]
[1765892742851,1.43756,87045.0,87030.0,0.0114927]
[1765892743060,0.1615018,87037.0,87036.0,0.09624]
[1765892743360,0.1615018,87037.0,87036.0,0.41507]
[1765892743361,0.0114918,87037.0,87036.0,0.41507]
[1765892743558,0.0114915,87040.0,87039.0,0.3303215]
[1765892743748,0.7464908,87045.0,87044.0,0.31883]
[1765892743946,0.1610416,87039.0,87038.0,0.15815]
[1765892744150,0.2991,87037.0,87036.0,0.09624]
[1765892744552,0.3101325,87032.0,87031.0,0.00017241]
[1765892746261,0.3131325,87032.0,87031.0,0.00017241]
[1765892746458,0.3151325,87032.0,87031.0,0.00017241]
[1765892746849,0.3131325,87032.0,87031.0,0.00017241]
[1765892747049,0.0114929,87029.0,87016.0,0.31883]
[1765892747249,0.0114945,87017.0,87016.0,0.31883]
[1765892747757,0.17431463,87026.0,87025.0,0.15815]
[1765892747959,0.14762,87026.0,87025.0,0.31883]
[1765892748157,0.1591133,87026.0,87025.0,0.31883]
[1765892748349,0.3058237,87023.0,87022.0,0.09624]
[1765892748860,0.3058237,87023.0,87022.0,0.25439]
[1765892749159,0.1586537,87023.0,87022.0,0.41507]
[1765892749460,0.3058537,87023.0,87022.0,0.09624]
[1765892749755,0.3048544,87018.0,87017.0,0.00017241]
[1765892750661,0.0114956,87009.0,86989.0,0.0114981]
[1765892750846,0.0114956,87009.0,86983.0,0.09624]
[1765892750847,0.0114986,86987.0,86983.0,0.09624]
[1765892751050,0.0115,86976.0,86975.0,0.15815]
[1765892751255,0.15769,86976.0,86975.0,0.15815]
[1765892751756,0.30339,86976.0,86975.0,0.15815]
[1765892751962,0.3029006,86971.0,86970.0,0.09624]